bitfinex-derivatives/quotes_SOLF0:USTF0_20250416
["timestamp","ask_amount","ask_price","bid_price","bid_amount"]
[1744796177758,10.67791856,125.22,125.14,30.62]
[1744796177959,7.9875,125.21,125.18,7.9889]
[1744796178361,10.67791856,125.22,125.14,30.62]
[1744796178562,0.05264616,125.19,125.16,8.0464395]
[1744796178760,0.05264616,125.19,125.16,0.0566395]
[1744796179062,0.05264616,125.19,125.18,7.9891]
[1744796181262,38.6061,125.23,125.2,7.9876]
[1744796181970,43.52231856,125.26,125.17,41.31791856]
[1744796182366,30.64,125.29,125.19,10.67791856]
[1744796182566,0.06022974,125.23,125.2,30.69955913]
[1744796182768,0.06022974,125.23,125.2,30.64]
[1744796183073,7.9839,125.27,125.21,4.1766]
[1744796183370,7.984,125.26,125.21,4.1766]
[1744796183567,7.984,125.26,125.23,7.9854]
[1744796184267,8.04078152,125.26,125.23,8.04646155]
[1744796184570,0.05678152,125.26,125.24,7.9848]
[1744796184763,30.6,125.32,125.23,41.33898011]
[1744796184962,30.6,125.32,125.25,10.67791856]
[1744796185164,38.5805,125.32,125.29,7.9818]
[1744796185364,2.2031,125.34,125.26,34.9775]
[1744796185969,0.05505754,125.31,125.29,8.03695682]
[1744796187369,0.05505754,125.31,125.29,0.05525682]
[1744796187569,8.03595754,125.31,125.29,0.05525682]
[1744796190173,0.05505754,125.31,125.29,0.05525682]
[1744796190367,0.05505754,125.31,125.29,8.03725682]
[1744796191772,0.05505754,125.31,125.29,0.05525682]
[1744796193173,0.05505754,125.31,125.29,8.03705682]
[1744796194873,0.05505754,125.31,125.3,7.9814]
[1744796195773,0.05505754,125.31,125.29,8.03705682]
[1744796196175,0.05505754,125.31,125.29,0.05525682]
[1744796196477,8.03595754,125.31,125.29,0.05525682]
[1744796197078,0.05505754,125.31,125.29,8.03725682]
[1744796198775,0.05505754,125.31,125.3,7.9814]
[1744796203678,0.05505754,125.31,125.29,8.03725682]
[1744796203880,0.05505754,125.31,125.29,0.05525682]
[1744796204282,0.05505754,125.31,125.29,8.03675682]
[1744796204882,0.05505754,125.31,125.3,7.9814]
[1744796208284,0.05505754,125.31,125.29,38.61695682]
[1744796208884,0.05505754,125.31,125.3,7.9814]
[1744796209987,0.05505754,125.31,125.29,38.61695682]
[1744796210387,0.05505754,125.31,125.29,30.63525682]
[1744796210687,0.05505754,125.31,125.3,7.9814]
[1744796212484,0.05505754,125.31,125.29,38.61695682]
[1744796213591,0.05505754,125.31,125.29,0.05525682]
[1744796213986,8.03615754,125.31,125.29,0.05525682]
[1744796214291,0.05505754,125.31,125.29,0.05525682]
[1744796214692,8.03615754,125.31,125.29,0.05525682]
[1744796215488,0.05505754,125.31,125.29,8.03715682]
[1744796216087,8.03615754,125.31,125.29,8.03715682]
[1744796217692,0.05505754,125.31,125.29,8.03715682]
[1744796219295,8.03595754,125.31,125.29,8.03715682]
[1744796220294,0.05505754,125.31,125.29,8.03715682]
[1744796220899,0.05505754,125.31,125.3,7.9814]
[1744796222397,0.05505754,125.31,125.29,8.03705682]
[1744796222697,0.05505754,125.31,125.29,0.05525682]
[1744796222898,0.05505754,125.31,125.3,7.9814]
[1744796224003,0.05505754,125.31,125.29,8.03705682]
[1744796224300,6.82927568,125.3,125.21,4.2261]
[1744796224507,6.82927568,125.26,125.21,4.2261]
[1744796224699,6.82927568,125.26,125.21,2.0649]
[1744796225006,14.81387568,125.26,125.22,7.9865]
[1744796225300,0.05238858,125.25,125.23,0.05573013]
[1744796226408,8.03738858,125.25,125.23,0.05573013]
[1744796227400,7.9853,125.24,125.23,0.05573013]
[1744796228401,7.9853,125.24,125.23,3.013e-05]
[1744796228606,41.31579014,125.25,125.14,34.7621]
[1744796228906,10.68340156,125.22,125.15,7.9908]
[1744796229106,10.68340156,125.22,125.14,34.7621]
[1744796229399,10.68340156,125.22,125.14,42.7535]
[1744796229602,8.04696099,125.19,125.17,0.05296203]
[1744796229804,0.05786099,125.19,125.17,0.05296203]
[1744796230803,7.9891,125.18,125.17,0.05296203]
[1744796231204,0.05786099,125.19,125.17,0.05296203]
[1744796231802,0.05786099,125.19,125.17,30.63296203]
[1744796233106,8.04636099,125.19,125.17,30.63296203]
[1744796233704,7.9891,125.18,125.17,30.63296203]
[1744796235806,8.04656099,125.19,125.17,30.63296203]
[1744796236909,7.9891,125.18,125.17,30.63296203]
[1744796237398,7.9891,125.18,125.17,0.05296203]
[1744796237604,18.67250156,125.18,125.17,0.05296203]
[1744796238207,10.68340156,125.18,125.12,30.58]
[1744796239213,7.9906,125.16,125.12,38.5727]
[1744796239413,0.05209108,125.16,125.14,0.05522043]
[1744796241612,0.05209108,125.16,125.15,7.991]
[1744796251328,0.05209108,125.16,125.14,0.05522043]
[1744796251921,0.05209108,125.16,125.14,8.04652043]
[1744796252125,0.05209108,125.16,125.14,0.05522043]
[1744796252622,8.04259108,125.16,125.14,0.05522043]
[1744796253723,7.991,125.15,125.14,0.05522043]
[1744796254823,7.9938,125.11,125.04,575.18]
[1744796255018,7.9938,125.11,125.05,6.4509]
[1744796255219,2.1102,125.18,125.07,10.68340156]
[1744796255427,10.68340156,125.21,125.11,10.68340156]
[1744796255727,10.68340156,125.21,125.12,30.58]
[1744796255930,7.9894,125.18,125.14,7.9913]
[1744796256223,0.05276558,125.18,125.15,0.0572375]
[1744796257130,0.05276558,125.18,125.16,7.99]
[1744796260933,0.05276558,125.18,125.17,7.9897]
[1744796261433,0.05276558,125.18,125.16,7.9901]
[1744796261635,0.05276558,125.18,125.15,0.0572375]
[1744796262135,0.05276558,125.18,125.17,7.9897]
[1744796264035,0.05276558,125.18,125.16,7.9902]
[1744796264531,0.05276558,125.18,125.17,7.9897]
[1744796267340,585.60340156,125.23,125.2,7.9875]
[1744796267341,30.58,125.23,125.2,7.9875]
[1744796267538,30.58,125.23,125.17,10.68340156]
[1744796268743,0.0580244,125.21,125.19,0.05326716]
[1744796269040,0.0580244,125.21,125.2,7.9876]
[1744796269839,0.0580244,125.21,125.19,0.05326716]
[1744796270240,8.0452244,125.21,125.19,0.05326716]
[1744796272842,0.0580244,125.21,125.19,8.04166716]
[1744796275244,0.0580244,125.21,125.2,7.9878]
[1744796278045,30.58,125.26,125.19,10.73666872]
[1744796278246,7.983,125.28,125.21,10.68340156]
[1744796278456,7.983,125.28,125.22,30.56]
[1744796278847,7.983,125.28,125.24,7.9848]
[1744796279446,0.05439046,125.27,125.25,0.0527358]
[1744796279946,0.05439046,125.27,125.26,7.984]
[1744796280945,0.05439046,125.27,125.25,8.0370358]
[1744796281750,8.03779046,125.27,125.25,0.0527358]
[1744796282049,0.05439046,125.27,125.25,0.0527358]
[1744796282249,7.984,125.26,125.25,0.0527358]
[1744796286553,8.03809046,125.27,125.25,0.0527358]
[1744796287757,7.984,125.26,125.25,0.0527358]
[1744796288160,18.66740156,125.26,125.25,0.0527358]
[1744796288356,7.9862,125.23,125.19,32.7]
[1744796288757,45.47630156,125.26,125.19,32.7]
[1744796289261,7.9856,125.24,125.21,7.9872]
[1744796289454,0.0539447,125.24,125.21,0.05839385]
[1744796289759,0.0539447,125.24,125.22,7.9862]
[1744796290156,0.0539447,125.24,125.21,0.05839385]
[1744796290859,0.0539447,125.24,125.22,7.9864]
[1744796291261,0.0539447,125.24,125.21,0.05839385]
[1744796291459,8.0392447,125.24,125.21,8.04499385]
[1744796291661,0.0539447,125.24,125.21,0.05839385]
[1744796292757,0.0539447,125.24,125.22,30.54]
[1744796293662,0.0539447,125.24,125.23,7.9859]
[1744796297364,0.0539447,125.24,125.23,7.9859]
[1744796299154,30.54,125.29,125.26,7.9837]
[1744796299662,45.47630156,125.32,125.23,2.0567]
[1744796299963,7.9825,125.29,125.25,7.9841]
[1744796300454,0.05798083,125.28,125.26,0.06070691]
[1744796301365,0.05798083,125.28,125.26,8.04470691]
[1744796303565,0.05798083,125.28,125.26,0.06070691]
[1744796304862,0.05798083,125.28,125.27,7.9833]
[1744796308169,0.05798083,125.28,125.26,8.04440691]
[1744796310165,8.04108083,125.28,125.26,0.06070691]
[1744796310470,10.74138239,125.28,125.26,0.06070691]
[1744796311771,7.9833,125.27,125.26,0.06070691]
[1744796312270,7.9833,125.27,125.26,0.00794133]
[1744796315978,0.05798083,125.28,125.26,0.00794133]
[1744796316674,0.05798083,125.28,125.26,7.99144133]
[1744796317471,0.05798083,125.28,125.26,0.00794133]
[1744796317876,7.9833,125.27,125.26,0.00794133]
[1744796318074,0.05798083,125.28,125.26,0.00794133]
[1744796318676,8.04098083,125.28,125.26,0.00794133]
[1744796319480,7.9833,125.27,125.26,0.00794133]
[1744796327480,8.04088083,125.28,125.26,0.00794133]
[1744796327683,0.05798083,125.28,125.26,0.00794133]
[1744796328384,0.05798083,125.28,125.27,7.9833]
[1744796332387,0.05798083,125.28,125.27,14.8166873]
[1744796332692,306.26262,125.46,125.26,30.52794133]
[1744796332693,6.8333873,125.34,125.29,6.8333873]
[1744796332888,14.8125873,125.34,125.29,37.3533873]
[1744796333191,14.8125873,125.34,125.31,7.9805]
[1744796333691,14.86553439,125.34,125.31,8.0322841]
[1744796334293,7.9798,125.33,125.31,0.0517841]
[1744796334792,8.03214709,125.34,125.31,0.0517841]
[1744796334995,14.86553439,125.34,125.31,0.0517841]
[1744796335292,6.88633439,125.34,125.31,0.0517841]
[1744796335587,7.9796,125.33,125.31,0.0517841]
[1744796338093,6.88633439,125.34,125.31,0.0517841]
[1744796338291,6.88633439,125.34,125.24,6.2372]
[1744796338292,6.8333873,125.32,125.25,30.5]
[1744796338488,6.8333873,125.3,125.26,6.8333873]
[1744796338690,14.8149873,125.3,125.27,7.9831]
[1744796339494,14.8700542,125.3,125.27,8.04165129]
[1744796339894,7.9825,125.29,125.27,0.05855129]
[1744796340093,6.8884542,125.3,125.27,0.05855129]
[1744796340699,7.9824,125.29,125.27,0.05855129]
[1744796340898,6.8884542,125.3,125.27,0.05855129]
[1744796341199,0.0550669,125.3,125.27,0.05855129]
[1744796341397,8.0371669,125.3,125.27,0.05855129]
[1744796341592,0.0550669,125.3,125.27,0.05855129]
[1744796342301,0.0550669,125.3,125.27,8.04175129]
[1744796342998,8.0368669,125.3,125.27,8.04175129]
[1744796344599,0.0550669,125.3,125.27,8.04175129]
[1744796345400,8.0365669,125.3,125.27,8.04175129]
[1744796345596,0.0550669,125.3,125.28,7.9827]
[1744796345791,0.0550669,125.3,125.28,10.67606525]
[1744796345997,1.38924929,125.35,125.28,10.67606525]
[1744796345998,7.9794,125.34,125.28,10.67606525]
[1744796346802,7.9794,125.34,125.31,7.9807]
[1744796346996,7.9794,125.34,125.31,8.03353945]
[1744796347200,8.03110553,125.34,125.31,8.03353945]
[1744796348102,7.9795,125.33,125.31,0.05283945]
[1744796348900,8.03090553,125.34,125.31,8.03353945]
[1744796349098,0.05170553,125.34,125.31,0.05283945]
[1744796350107,0.05170553,125.34,125.31,8.03303945]
[1744796350404,0.05170553,125.34,125.31,0.05283945]
[1744796351000,0.05170553,125.34,125.32,7.98]
[1744796351203,0.05170553,125.34,125.31,0.05283945]
[1744796351602,0.05170553,125.34,125.32,7.9801]
[1744796351803,0.05170553,125.34,125.31,0.05283945]
[1744796352399,7.9799,125.33,125.31,0.05283945]
[1744796353103,0.05170553,125.34,125.31,0.05283945]
[1744796353404,10.67606525,125.33,125.31,0.05283945]
[1744796353600,30.48,125.32,125.24,34.6222]
[1744796353806,10.67606525,125.31,125.24,34.6222]
[1744796354106,10.67606525,125.29,125.24,30.48]
[1744796354302,10.67606525,125.29,125.24,38.4649]
[1744796354702,0.05951933,125.28,125.25,0.06050366]
[1744796355104,8.04261933,125.28,125.25,8.04490366]
[1744796356613,0.05951933,125.28,125.26,7.9838]
[1744796357906,0.05951933,125.28,125.27,7.9833]
[1744796360612,0.05951933,125.28,125.26,10.2088]
[1744796361612,0.05951933,125.28,125.27,7.9833]
[1744796362712,0.05951933,125.28,125.26,10.2088]
[1744796362907,0.05951933,125.28,125.26,7.9838]
[1744796366114,0.05951933,125.28,125.25,10.12370366]
[1744796366412,0.05951933,125.28,125.25,2.13940366]
[1744796366813,0.05951933,125.28,125.26,7.9837]
[1744796367213,0.05951933,125.28,125.25,2.13940366]
[1744796367412,0.05951933,125.28,125.26,7.9834]
[1744796368610,0.05951933,125.28,125.27,7.9833]
[1744796371112,38.4607,125.32,125.29,7.9816]
[1744796372118,7.9798,125.33,125.3,7.981]
[1744796372307,0.05790081,125.32,125.3,7.981]
[1744796374216,0.05790081,125.32,125.29,0.0547531]
[1744796374514,0.05790081,125.32,125.29,30.5147531]
[1744796377117,0.05790081,125.32,125.3,7.981]
[1744796377317,0.05790081,125.32,125.29,37.34243238]
[1744796378220,0.05790081,125.32,125.31,7.9808]
[1744796381521,0.05790081,125.32,125.3,7.9811]
[1744796382521,0.05790081,125.32,125.29,37.34243238]
[1744796384226,0.05790081,125.32,125.31,7.9808]
[1744796384623,0.05790081,125.32,125.29,37.34243238]
[1744796384820,0.05790081,125.32,125.3,7.9811]
[1744796387826,0.05790081,125.32,125.29,37.34243238]
[1744796388927,0.05790081,125.32,125.3,7.9814]
[1744796389528,0.05790081,125.32,125.29,37.34243238]
[1744796389729,0.05790081,125.32,125.29,30.5147531]
[1744796389929,0.05790081,125.32,125.29,0.0547531]
[1744796391031,8.03840081,125.32,125.29,8.0364531]
[1744796391323,0.05790081,125.32,125.29,0.0547531]
[1744796392230,0.05790081,125.32,125.3,7.9812]
[1744796393435,8.03840081,125.32,125.29,8.0366531]
[1744796393931,0.05790081,125.32,125.29,0.0547531]
[1744796394231,7.9811,125.31,125.29,0.0547531]
[1744796395636,37.28767928,125.31,125.29,0.0547531]
[1744796396031,7.9814,125.3,125.29,0.0547531]
[1744796397635,45.26887928,125.31,125.29,0.0547531]
[1744796397833,38.4412,125.31,125.29,0.0547531]
[1744796398233,7.9812,125.31,125.29,0.0547531]
[1744796399036,0.05790081,125.32,125.29,0.0547531]
[1744796399736,0.05790081,125.32,125.3,7.981]
[1744796401138,0.05790081,125.32,125.29,0.0547531]
[1744796401838,7.9814,125.3,125.29,0.0547531]
[1744796403343,30.44,125.31,125.29,0.0547531]
[1744796403946,38.4213,125.31,125.29,0.0547531]
[1744796404137,37.26767928,125.31,125.29,0.0547531]
[1744796404945,7.9814,125.3,125.29,0.0547531]
[1744796410451,14.80907928,125.3,125.29,0.0547531]
[1744796411646,7.9814,125.3,125.29,0.0547531]
[1744796413155,30.44,125.31,125.29,0.0547531]
[1744796413348,8.03830081,125.32,125.29,0.0547531]
[1744796413852,8.03830081,125.32,125.29,8.0364531]
[1744796418457,6.88558009,125.32,125.29,0.0547531]
[1744796418960,7.9811,125.31,125.29,0.0547531]
[1744796423461,37.32558009,125.32,125.29,0.0547531]
[1744796424060,7.9814,125.31,125.29,0.0547531]
[1744796424461,37.32558009,125.32,125.29,0.0547531]
[1744796424760,7.9808,125.31,125.29,0.0547531]
[1744796424962,37.32558009,125.32,125.29,0.0547531]
[1744796427156,7.9814,125.3,125.29,0.0547531]
[1744796429463,7.9811,125.31,125.29,0.0547531]
[1744796430166,37.32558009,125.32,125.29,0.0547531]
[1744796430666,7.9814,125.3,125.29,0.0547531]
[1744796438772,14.80907928,125.3,125.29,0.0547531]
[1744796446076,37.32558009,125.32,125.29,0.0547531]
[1744796446372,30.49790081,125.32,125.29,0.0547531]
[1744796446574,30.49790081,125.32,125.29,6.88243238]
[1744796446776,0.05790081,125.32,125.31,6.82767928]
[1744796447172,0.05790081,125.32,125.3,6.82767928]
[1744796447674,0.05790081,125.32,125.3,14.80877928]
[1744796448278,0.05790081,125.32,125.3,7.9811]
[1744796448477,0.05790081,125.32,125.3,14.80877928]
[1744796451078,0.05790081,125.32,125.31,14.80847928]
[1744796451478,0.05790081,125.32,125.31,6.82767928]
[1744796451675,0.05790081,125.32,125.3,14.80877928]
[1744796454775,38.3985,125.35,125.3,6.82767928]
[1744796454983,30.42,125.35,125.32,6.82767928]
[1744796455277,6.82767928,125.37,125.32,6.82767928]
[1744796455476,7.9782,125.36,125.32,14.80737928]
[1744796455979,0.05758539,125.35,125.33,0.05583215]
[1744796456181,0.05758539,125.35,125.33,8.03523215]
[1744796458376,0.05758539,125.35,125.33,0.05583215]
[1744796460781,0.05758539,125.35,125.33,8.03533215]
[1744796462185,2.1887,125.42,125.34,6.82767928]
[1744796462482,30.38,125.41,125.36,6.82767928]
[1744796462680,7.9755,125.4,125.36,14.80497928]
[1744796462887,6.82767928,125.4,125.34,11.11017928]
[1744796463380,6.82767928,125.4,125.36,0.05524121]
[1744796463381,0.05469504,125.38,125.36,0.05524121]
[1744796466183,7.977,125.37,125.36,0.05524121]
[1744796466687,0.05469504,125.38,125.36,0.05524121]
[1744796466888,6.88237432,125.38,125.36,0.05524121]
[1744796467190,14.85907432,125.38,125.36,0.05524121]
[1744796468188,7.977,125.37,125.36,0.05524121]
[1744796469686,14.85897432,125.38,125.36,0.05524121]
[1744796470288,7.977,125.37,125.36,0.05524121]
[1744796471488,8.03119504,125.38,125.36,0.05524121]
[1744796472188,8.03119504,125.38,125.36,8.03284121]
[1744796472390,7.977,125.37,125.36,0.05524121]
[1744796473790,8.03129504,125.38,125.36,0.05524121]
[1744796474092,0.05469504,125.38,125.36,0.05524121]
[1744796475594,8.03139504,125.38,125.36,0.05524121]
[1744796475896,6.88237432,125.38,125.36,0.05524121]
[1744796476193,7.977,125.37,125.36,0.05524121]
[1744796476393,6.88237432,125.38,125.36,0.05524121]
[1744796476697,0.05469504,125.38,125.36,0.05524121]
[1744796477401,0.05469504,125.38,125.36,8.03274121]
[1744796477696,0.05469504,125.38,125.36,0.05524121]
[1744796480300,14.85877432,125.38,125.36,0.05524121]
[1744796481097,6.88237432,125.38,125.36,0.05524121]
[1744796481497,0.05469504,125.38,125.36,0.05524121]
[1744796481997,0.05469504,125.38,125.36,8.03254121]
[1744796482194,6.88237432,125.38,125.36,0.05524121]
[1744796482706,7.977,125.37,125.36,0.05524121]
[1744796491307,45.21897432,125.38,125.36,0.05524121]
[1744796491501,0.05469504,125.38,125.36,6.88292049]
[1744796491811,0.05469504,125.38,125.36,14.86032049]
[1744796492104,0.05469504,125.38,125.36,0.05524121]
[1744796493208,8.03139504,125.38,125.36,0.05524121]
[1744796493607,0.05469504,125.38,125.36,0.05524121]
[1744796493808,6.88237432,125.38,125.36,0.05524121]
[1744796494411,30.34,125.37,125.31,2.0568]
[1744796494612,6.82767928,125.35,125.3,2.0183]
[1744796495013,7.9798,125.33,125.3,2.0183]
[1744796495612,8.03855735,125.33,125.3,2.06980871]
[1744796496107,14.86623663,125.33,125.3,2.06980871]
[1744796496509,7.9808,125.32,125.3,0.05150871]
[1744796498712,7.9808,125.31,125.3,0.05150871]
[1744796500214,7.9805,125.32,125.3,0.05150871]
[1744796501712,7.9805,125.32,125.3,8.03290871]
[1744796502014,7.9805,125.32,125.3,0.05150871]
[1744796502415,7.9808,125.31,125.3,0.05150871]
[1744796503117,7.9803,125.32,125.3,0.05150871]
[1744796503818,45.14847928,125.31,125.3,0.05150871]
[1744796506019,7.9833,125.28,125.24,2.2125]
[1744796506215,6.82767928,125.28,125.23,2.145]
[1744796506414,37.16767928,125.28,125.23,2.145]
[1744796506712,6.82767928,125.26,125.22,2.1095]
[1744796507114,6.82767928,125.26,125.23,0.05278502]
[1744796507314,0.05660173,125.25,125.23,0.05278502]
[1744796508012,8.04120173,125.25,125.23,0.05278502]
[1744796508317,0.05660173,125.25,125.23,0.05278502]
[1744796508909,8.04150173,125.25,125.23,0.05278502]
[1744796510318,7.9853,125.24,125.23,0.05278502]
[1744796512216,14.81297928,125.24,125.23,0.05278502]
[1744796512719,7.9883,125.2,125.16,8.91717928]
[1744796513018,7.9883,125.2,125.17,7.9896]
[1744796513215,7.9885,125.19,125.16,8.91717928]
[1744796513416,6.82767928,125.21,125.16,8.91717928]
[1744796513722,0.05672868,125.2,125.17,0.05761058]
[1744796514022,7.9884,125.19,125.17,0.05761058]
[1744796514417,0.05672868,125.2,125.17,0.05761058]
[1744796514418,14.81677928,125.18,125.17,0.05761058]
[1744796516924,37.18767928,125.19,125.17,0.05761058]
[1744796517115,30.36,125.19,125.17,0.05761058]
[1744796517322,0.05672868,125.2,125.17,0.05761058]
[1744796518215,14.87230796,125.2,125.17,0.05761058]
[1744796519226,6.82767928,125.19,125.17,0.05761058]
[1744796520225,7.9891,125.18,125.17,0.05761058]
[1744796521622,37.20767928,125.19,125.17,0.05761058]
[1744796523126,7.9891,125.18,125.17,0.05761058]
[1744796523629,7.9911,125.15,125.12,7.9927]
[1744796523825,14.81877928,125.15,125.12,7.9927]
[1744796524021,6.82767928,125.15,125.11,2.1589]
[1744796524224,14.81997928,125.13,125.09,30.34]
[1744796524428,6.82767928,125.11,125.06,399.16767928]
[1744796524727,6.82767928,125.11,125.08,7.9952]
[1744796524928,0.05730785,125.1,125.08,7.9952]
[1744796525125,0.05730785,125.1,125.07,0.06012128]
[1744796525931,0.05730785,125.1,125.07,10.76562202]
[1744796526229,30.34,125.15,125.07,10.76562202]
[1744796526428,30.34,125.15,125.07,10.70550074]
[1744796526628,7.9919,125.14,125.11,7.9935]
[1744796527325,7.9919,125.14,125.11,8.05138303]
[1744796527326,8.05196209,125.14,125.11,8.05138303]
[1744796530131,0.06006209,125.14,125.11,8.05138303]
[1744796531225,0.06006209,125.14,125.11,0.05788303]
[1744796531431,0.06006209,125.14,125.12,7.9929]
[1744796532531,0.06006209,125.14,125.11,8.05118303]
[1744796532731,8.05186209,125.14,125.11,8.05118303]
[1744796532933,0.06006209,125.14,125.11,8.05118303]
[1744796534133,0.06006209,125.14,125.11,0.05788303]
[1744796535238,7.9926,125.13,125.11,0.05788303]
[1744796536036,8.05186209,125.14,125.11,0.05788303]
[1744796536237,0.06006209,125.14,125.11,0.05788303]
[1744796537339,0.06006209,125.14,125.12,7.9926]
[1744796537635,0.06006209,125.14,125.11,0.05788303]
[1744796538035,8.05196209,125.14,125.11,8.05108303]
[1744796543140,8.05196209,125.14,125.12,7.9929]
[1744796544543,0.06006209,125.14,125.12,7.9929]
[1744796545643,8.05176209,125.14,125.11,8.05108303]
[1744796547241,7.9925,125.13,125.11,0.05788303]
[1744796548350,7.9929,125.12,125.11,0.05788303]
[1744796549350,14.84034237,125.13,125.11,0.05788303]
[1744796549648,6.84784237,125.13,125.11,8.05138303]
[1744796549843,7.9929,125.12,125.11,0.05788303]
[1744796553249,45.18074237,125.12,125.11,0.05788303]
[1744796553549,7.9951,125.09,125.06,7.9963]
[1744796553747,14.84294237,125.09,125.06,7.9963]
[1744796554849,14.90152242,125.09,125.06,8.05303559]
[1744796556249,0.05858005,125.09,125.07,7.9959]
[1744796557451,0.05858005,125.09,125.06,8.05313559]
[1744796558350,14.84394237,125.07,125.06,0.05673559]
[1744796560154,6.84784237,125.07,125.06,0.05673559]
[1744796560547,6.84784237,125.08,125.06,0.05673559]
[1744796560750,14.84384237,125.08,125.06,0.05673559]
[1744796561155,7.9961,125.07,125.06,0.05673559]
[1744796561551,30.39858005,125.09,125.06,0.05673559]
[1744796562055,30.39858005,125.09,125.06,8.05313559]
[1744796562658,30.39858005,125.09,125.07,7.996]
[1744796563458,30.39858005,125.09,125.06,8.05313559]
[1744796564263,38.39368005,125.09,125.06,8.05313559]
[1744796565264,38.39368005,125.09,125.07,7.996]
[1744796565761,30.39858005,125.09,125.07,7.996]
[1744796566363,0.05858005,125.09,125.08,7.9955]
[1744796568866,0.05858005,125.09,125.06,0.05673559]
[1744796568867,0.05858005,125.09,125.07,7.9958]
[1744796569264,0.05858005,125.09,125.06,0.05673559]
[1744796569567,0.05858005,125.09,125.06,8.05303559]
[1744796571169,8.05348005,125.09,125.06,8.05303559]
[1744796572770,8.05348005,125.09,125.07,7.9961]
[1744796573272,0.05858005,125.09,125.07,7.9961]
[1744796574167,0.05858005,125.09,125.08,7.9955]
[1744796574671,0.05858005,125.09,125.07,7.9957]
[1744796575472,0.05858005,125.09,125.08,7.9955]
[1744796577471,0.05858005,125.09,125.07,7.9958]
[1744796580276,0.05858005,125.09,125.08,7.9955]
[1744796581976,0.05858005,125.09,125.07,7.9958]
[1744796582178,0.05858005,125.09,125.06,0.05673559]
[1744796582678,8.05378005,125.09,125.06,8.05323559]
[1744796583180,6.85589034,125.08,125.06,0.05673559]
[1744796584179,7.9961,125.07,125.06,0.05673559]
[1744796584879,14.85199034,125.07,125.06,0.05673559]
[1744796588080,7.9961,125.07,125.06,0.05673559]
[1744796589381,14.85169034,125.08,125.06,0.05673559]
[1744796590686,7.9961,125.07,125.06,0.05673559]
[1744796592987,14.85169034,125.08,125.06,0.05673559]
[1744796594181,6.85589034,125.08,125.06,0.05673559]
[1744796594388,30.37858005,125.09,125.06,0.05673559]
[1744796594780,0.05858005,125.09,125.08,7.9955]
[1744796595789,0.05858005,125.09,125.06,0.05673559]
[1744796596186,6.91447039,125.09,125.06,0.05673559]
[1744796596386,14.90967039,125.09,125.06,8.05313559]
[1744796597289,0.05858005,125.09,125.06,0.05673559]
[1744796597781,0.05858005,125.09,125.07,7.9957]
[1744796598990,8.05368005,125.09,125.06,8.05303559]
[1744796599188,14.90957039,125.09,125.06,8.05303559]
[1744796599590,7.9956,125.08,125.06,8.05303559]
[1744796599888,7.9956,125.08,125.06,0.05673559]
[1744796600078,37.23447039,125.09,125.06,0.05673559]
[1744796600279,14.85199034,125.07,125.06,0.05673559]
[1744796606889,7.9983,125.04,125.01,7.9998]
[1744796607094,14.85419034,125.04,125.01,7.9998]
[1744796608004,14.91153854,125.04,125.01,8.05465683]
[1744796608723,14.91153854,125.04,125.02,7.9993]
[1744796609213,6.91323854,125.04,125.02,7.9993]
[1744796610505,6.91323854,125.04,125.01,8.05445683]
[1744796610506,14.91133854,125.04,125.01,8.05445683]
[1744796611298,6.91323854,125.04,125.01,0.05485683]
[1744796611797,6.85589034,125.02,125.01,0.05485683]
[1744796612699,14.85519034,125.02,125.01,0.05485683]
[1744796616804,6.85589034,125.02,124.95,32.5447]
[1744796617007,6.85589034,124.98,124.95,32.5447]
[1744796617209,6.85589034,124.98,124.95,2.2247]
[1744796617412,6.85589034,124.98,124.96,8.0031]
[1744796618010,6.91364501,124.98,124.96,8.05536385]
[1744796618812,6.91364501,124.98,124.96,0.05226385]
[1744796619205,8.0025,124.97,124.96,0.05226385]
[1744796619906,38.3025,124.97,124.96,0.05226385]
[1744796620501,30.3,124.97,124.96,0.05226385]
[1744796621113,0.05775467,124.98,124.97,8.0025]
[1744796621511,0.05775467,124.98,124.96,0.05226385]
[1744796622213,0.05775467,124.98,124.96,8.05506385]
[1744796623206,0.05775467,124.98,124.97,8.0025]
[1744796624013,8.05975467,124.98,124.96,8.05536385]
[1744796624212,0.05775467,124.98,124.96,0.05226385]
[1744796624606,2.0914,125.03,124.96,0.05226385]
[1744796624607,32.4201,125.05,124.96,49.10300035]
[1744796624809,32.4201,125.05,124.96,41.0507365]
[1744796625210,7.999,125.03,125.0,8.0003]
[1744796625712,8.05311888,125.03,125.0,8.05694181]
[1744796626217,0.05411888,125.03,125.01,7.9999]
[1744796632222,0.05411888,125.03,125.0,8.05684181]
[1744796632918,0.05411888,125.03,125.01,7.9999]
[1744796638023,0.05411888,125.03,125.02,7.9993]